[Event "January 9 Early 2024"]
[Site "https://www.chess.com"]
[Date "2024.01.11"]
[Round "1"]
[White "Topalov, Aleksandar"]
[Black "Hayrapetyan, Hovik"]
[Result "0-1"]
[Board "94"]
[TimeControl "180+1"]
[WhiteFideId "925659"]
[BlackFideId "13302639"]
[WhiteElo "2441"]
[BlackElo "2809"]
[WhiteTeam "SRB"]
[BlackTeam "ARM"]
[WhiteClock "0:00:26"]
[BlackClock "0:00:41"]

1. b3 {[%clk 0:03:00]}  Nf6 {[%clk 0:02:58]} 2. Bb2 {[%clk 0:03:00]}  d5 {[%clk 0:02:56]} 3. Nf3 {[%clk 0:02:59]}  c5 {[%clk 0:02:54]} 4. e3 {[%clk 0:02:58]}  a6 {[%clk 0:02:54]} 5. Be2 {[%clk 0:02:53]}  Nc6 {[%clk 0:02:53]} 6. O-O {[%clk 0:02:52]}  Bf5 {[%clk 0:02:43]} 7. d3 {[%clk 0:02:47]}  e6 {[%clk 0:02:41]} 8. Nh4 {[%clk 0:02:40]}  Bg6 {[%clk 0:02:39]} 9. Nd2 {[%clk 0:02:38]}  Bd6 {[%clk 0:02:30]} 10. f4 {[%clk 0:02:35]}  Qc7 {[%clk 0:01:24]} 11. Nxg6 {[%clk 0:02:33]}  hxg6 {[%clk 0:01:23]} 12. Nf3 {[%clk 0:02:30]}  e5 {[%clk 0:01:20]} 13. e4 {[%clk 0:01:55]}  dxe4 {[%clk 0:01:13]} 14. dxe4 {[%clk 0:01:54]}  O-O-O {[%clk 0:01:04]} 15. Qe1 {[%clk 0:01:47]}  exf4 {[%clk 0:01:01]} 16. Bd3 {[%clk 0:01:46]}  Ne5 {[%clk 0:01:00]} 17. h3 {[%clk 0:01:24]}  Nxf3+ {[%clk 0:00:56]} 18. Rxf3 {[%clk 0:01:21]}  Be5 {[%clk 0:00:56]} 19. Qc1 {[%clk 0:01:19]}  g5 {[%clk 0:00:55]} 20. a4 {[%clk 0:01:08]}  g4 {[%clk 0:00:45]} 21. hxg4 {[%clk 0:00:56]}  g5 {[%clk 0:00:45]} 22. Rb1 {[%clk 0:00:38]}  Nxg4 {[%clk 0:00:43]} 23. Qf1 {[%clk 0:00:26]}  Bxb2 {[%clk 0:00:40]} 24. Rxb2 {[%clk 0:00:26]}  Qe5 {[%clk 0:00:41]} 0-1

[Event "January 9 Early 2024"]
[Site "https://www.chess.com"]
[Date "2024.01.11"]
[Round "1"]
[White "Herman, Daniel"]
[Black "Sokolovsky, Yahli"]
[Result "0-1"]
[Board "96"]
[TimeControl "180+1"]
[WhiteFideId "30935008"]
[BlackFideId "2820242"]
[WhiteElo "2418"]
[BlackElo "2759"]
[WhiteTeam "USA"]
[BlackTeam "ISR"]
[WhiteClock "0:00:42"]
[BlackClock "0:00:27"]

1. c4 {[%clk 0:03:00]}  d6 {[%clk 0:02:54]} 2. Nc3 {[%clk 0:02:57]}  e5 {[%clk 0:02:50]} 3. Nf3 {[%clk 0:02:57]}  f5 {[%clk 0:02:35]} 4. d4 {[%clk 0:02:48]}  e4 {[%clk 0:02:35]} 5. Ng1 {[%clk 0:02:45]}  c6 {[%clk 0:02:31]} 6. Bf4 {[%clk 0:02:44]}  Nf6 {[%clk 0:02:30]} 7. e3 {[%clk 0:02:42]}  Be7 {[%clk 0:02:30]} 8. h4 {[%clk 0:02:22]}  O-O {[%clk 0:02:28]} 9. Nh3 {[%clk 0:02:15]}  Ng4 {[%clk 0:02:25]} 10. h5 {[%clk 0:02:07]}  Qe8 {[%clk 0:02:25]} 11. Be2 {[%clk 0:02:01]}  Qxh5 {[%clk 0:02:22]} 12. Qb3 {[%clk 0:01:57]}  Qf7 {[%clk 0:02:01]} 13. Ng5 {[%clk 0:01:50]}  Bxg5 {[%clk 0:02:01]} 14. Bxg5 {[%clk 0:01:50]}  Be6 {[%clk 0:01:50]} 15. Bf4 {[%clk 0:01:45]}  Rd8 {[%clk 0:01:41]} 16. d5 {[%clk 0:01:42]}  cxd5 {[%clk 0:01:38]} 17. cxd5 {[%clk 0:01:43]}  Bc8 {[%clk 0:01:35]} 18. Nb5 {[%clk 0:01:36]}  Qe7 {[%clk 0:01:08]} 19. Rc1 {[%clk 0:01:34]}  Na6 {[%clk 0:01:08]} 20. Qa3 {[%clk 0:01:18]}  Ne5 {[%clk 0:01:08]} 21. b4 {[%clk 0:01:01]}  Bd7 {[%clk 0:01:07]} 22. Nd4 {[%clk 0:01:00]}  Rac8 {[%clk 0:01:07]} 23. Kd2 {[%clk 0:00:58]}  Nc7 {[%clk 0:00:39]} 24. Qb3 {[%clk 0:00:58]}  Qf7 {[%clk 0:00:33]} 25. Bxe5 {[%clk 0:00:50]}  dxe5 {[%clk 0:00:34]} 26. Rxc7 {[%clk 0:00:44]}  Rxc7 {[%clk 0:00:30]} 27. Nc2 {[%clk 0:00:42]}  Be6 {[%clk 0:00:27]} 0-1

[Event "January 9 Early 2024"]
[Site "https://www.chess.com"]
[Date "2024.01.11"]
[Round "1"]
[White "Firouzja, Alireza"]
[Black "Astafurov, Arseniy"]
[Result "1-0"]
[Board "98"]
[TimeControl "180+1"]
[WhiteFideId "12573981"]
[BlackFideId "24175218"]
[WhiteElo "3132"]
[BlackElo "2534"]
[WhiteTeam "FRA"]
[BlackTeam "RUS"]
[WhiteClock "0:01:09"]
[BlackClock "0:00:17"]

1. d4 {[%clk 0:02:59]}  d5 {[%clk 0:02:58]} 2. Nf3 {[%clk 0:02:50]}  Nf6 {[%clk 0:02:58]} 3. c4 {[%clk 0:02:50]}  c6 {[%clk 0:02:58]} 4. e3 {[%clk 0:02:50]}  a6 {[%clk 0:02:59]} 5. Qc2 {[%clk 0:02:48]}  e6 {[%clk 0:02:52]} 6. Nbd2 {[%clk 0:02:46]}  Nbd7 {[%clk 0:02:51]} 7. b3 {[%clk 0:02:46]}  Bd6 {[%clk 0:02:45]} 8. Bb2 {[%clk 0:02:46]}  O-O {[%clk 0:02:43]} 9. Bd3 {[%clk 0:02:46]}  Qe7 {[%clk 0:02:39]} 10. Ne5 {[%clk 0:02:44]}  h6 {[%clk 0:02:20]} 11. O-O {[%clk 0:02:41]}  c5 {[%clk 0:02:19]} 12. cxd5 {[%clk 0:02:39]}  exd5 {[%clk 0:02:18]} 13. f4 {[%clk 0:02:37]}  b5 {[%clk 0:02:13]} 14. dxc5 {[%clk 0:02:23]}  Nxc5 {[%clk 0:02:04]} 15. Ndf3 {[%clk 0:02:23]}  Nfe4 {[%clk 0:01:52]} 16. Rad1 {[%clk 0:02:12]}  Bf5 {[%clk 0:01:50]} 17. Nd4 {[%clk 0:02:11]}  Bh7 {[%clk 0:01:43]} 18. Bxe4 {[%clk 0:02:06]}  Bxe4 {[%clk 0:01:36]} 19. Qe2 {[%clk 0:02:05]}  Rac8 {[%clk 0:01:27]} 20. Ba1 {[%clk 0:01:46]}  Bxe5 {[%clk 0:01:17]} 21. fxe5 {[%clk 0:01:47]}  Ne6 {[%clk 0:01:18]} 22. Nf5 {[%clk 0:01:40]}  Qg5 {[%clk 0:01:06]} 23. h4 {[%clk 0:01:30]}  Qd8 {[%clk 0:00:50]} 24. Qg4 {[%clk 0:01:13]}  Kh7 {[%clk 0:00:39]} 25. Nd6 {[%clk 0:01:11]}  Rc2 {[%clk 0:00:34]} 26. Nxe4 {[%clk 0:01:10]}  Qb6 {[%clk 0:00:22]} 27. Qf5+ {[%clk 0:01:10]}  Kh8 {[%clk 0:00:19]} 28. Nf6 {[%clk 0:01:09]}  Qxe3+ {[%clk 0:00:18]} 29. Kh1 {[%clk 0:01:09]}  gxf6 {[%clk 0:00:17]} 30. Qxc2 {[%clk 0:01:09]} 1-0

[Event "January 9 Early 2024"]
[Site "https://www.chess.com"]
[Date "2024.01.11"]
[Round "1"]
[White "Maltsevskaya, Aleksandra"]
[Black "Gutierrez Carmona, Juan Alejandro"]
[Result "1-0"]
[Board "100"]
[TimeControl "180+1"]
[WhiteFideId "24174041"]
[BlackFideId "5106770"]
[WhiteElo "2579"]
[BlackElo "2183"]
[WhiteTeam "POL"]
[BlackTeam "MEX"]
[WhiteClock "0:01:06"]
[BlackClock "0:00:02"]

1. e4 {[%clk 0:03:00]}  e5 {[%clk 0:02:59]} 2. Nf3 {[%clk 0:03:00]}  Nc6 {[%clk 0:02:59]} 3. Bb5 {[%clk 0:03:01]}  a6 {[%clk 0:02:59]} 4. Ba4 {[%clk 0:03:01]}  Nf6 {[%clk 0:02:59]} 5. O-O {[%clk 0:03:02]}  Be7 {[%clk 0:02:59]} 6. Re1 {[%clk 0:02:59]}  b5 {[%clk 0:03:00]} 7. Bb3 {[%clk 0:02:59]}  d6 {[%clk 0:03:00]} 8. h3 {[%clk 0:02:59]}  O-O {[%clk 0:03:00]} 9. c3 {[%clk 0:02:59]}  Na5 {[%clk 0:03:00]} 10. Bc2 {[%clk 0:03:00]}  c5 {[%clk 0:03:01]} 11. d4 {[%clk 0:03:01]}  Qc7 {[%clk 0:03:00]} 12. Nbd2 {[%clk 0:03:01]}  c4 {[%clk 0:02:59]} 13. d5 {[%clk 0:03:00]}  Nb7 {[%clk 0:02:50]} 14. a4 {[%clk 0:02:59]}  Bd7 {[%clk 0:02:48]} 15. Nf1 {[%clk 0:02:53]}  Nc5 {[%clk 0:02:47]} 16. Bg5 {[%clk 0:02:47]}  bxa4 {[%clk 0:02:33]} 17. Bxf6 {[%clk 0:02:41]}  Bxf6 {[%clk 0:02:32]} 18. Ne3 {[%clk 0:02:42]}  Nb3 {[%clk 0:02:29]} 19. Bxb3 {[%clk 0:02:32]}  cxb3 {[%clk 0:02:16]} 20. g3 {[%clk 0:02:23]}  Qb6 {[%clk 0:01:26]} 21. Kg2 {[%clk 0:02:23]}  Rac8 {[%clk 0:01:14]} 22. Qe2 {[%clk 0:02:11]}  g6 {[%clk 0:01:07]} 23. h4 {[%clk 0:02:11]}  Bg7 {[%clk 0:01:05]} 24. h5 {[%clk 0:02:10]}  f5 {[%clk 0:00:45]} 25. hxg6 {[%clk 0:02:09]}  hxg6 {[%clk 0:00:46]} 26. Nh4 {[%clk 0:01:21]}  f4 {[%clk 0:00:28]} 27. Nc4 {[%clk 0:01:20]}  Rxc4 {[%clk 0:00:07]} 28. Qxc4 {[%clk 0:01:19]}  fxg3 {[%clk 0:00:02]} 29. fxg3 {[%clk 0:01:06]} 1-0

[Event "January 9 Early 2024"]
[Site "https://www.chess.com"]
[Date "2024.01.11"]
[Round "1"]
[White "Mahdavi, Reza"]
[Black "Hamley, Ryan"]
[Result "1-0"]
[Board "103"]
[TimeControl "180+1"]
[WhiteFideId "12595926"]
[BlackFideId "30959497"]
[WhiteElo "2867"]
[BlackElo "2474"]
[WhiteTeam "IRI"]
[BlackTeam "USA"]
[WhiteClock "0:01:30"]
[BlackClock "0:00:11"]

1. e4 {[%clk 0:03:00]}  c6 {[%clk 0:02:47]} 2. d4 {[%clk 0:03:00]}  d5 {[%clk 0:02:47]} 3. e5 {[%clk 0:03:01]}  Bf5 {[%clk 0:02:47]} 4. Nf3 {[%clk 0:03:01]}  e6 {[%clk 0:02:45]} 5. Be2 {[%clk 0:03:02]}  c5 {[%clk 0:02:45]} 6. Be3 {[%clk 0:03:01]}  Qb6 {[%clk 0:02:45]} 7. Nc3 {[%clk 0:03:00]}  Nc6 {[%clk 0:02:43]} 8. Bb5 {[%clk 0:03:00]}  a6 {[%clk 0:02:40]} 9. dxc5 {[%clk 0:02:48]}  Bxc5 {[%clk 0:02:39]} 10. Bxc5 {[%clk 0:02:49]}  Qxc5 {[%clk 0:02:39]} 11. Qd4 {[%clk 0:02:49]}  Qxd4 {[%clk 0:02:05]} 12. Bxc6+ {[%clk 0:02:49]}  bxc6 {[%clk 0:02:06]} 13. Nxd4 {[%clk 0:02:50]}  Ne7 {[%clk 0:02:06]} 14. Na4 {[%clk 0:02:50]}  Kd7 {[%clk 0:01:55]} 15. Nb6+ {[%clk 0:02:49]}  Kc7 {[%clk 0:01:54]} 16. Nxa8+ {[%clk 0:02:50]}  Rxa8 {[%clk 0:01:53]} 17. b4 {[%clk 0:02:44]}  Ng6 {[%clk 0:01:47]} 18. Kd2 {[%clk 0:02:18]}  Nxe5 {[%clk 0:01:45]} 19. Nxf5 {[%clk 0:02:18]}  exf5 {[%clk 0:01:44]} 20. Rhe1 {[%clk 0:02:19]}  Kd6 {[%clk 0:01:42]} 21. Kc3 {[%clk 0:02:16]}  f4 {[%clk 0:01:37]} 22. Kd4 {[%clk 0:02:08]}  f6 {[%clk 0:01:35]} 23. a4 {[%clk 0:02:05]}  a5 {[%clk 0:01:21]} 24. bxa5 {[%clk 0:02:01]}  c5+ {[%clk 0:01:20]} 25. Kc3 {[%clk 0:02:02]}  d4+ {[%clk 0:01:20]} 26. Kd2 {[%clk 0:02:02]}  Rxa5 {[%clk 0:01:19]} 27. Reb1 {[%clk 0:02:01]}  Kd5 {[%clk 0:01:08]} 28. Rb7 {[%clk 0:01:58]}  c4 {[%clk 0:01:06]} 29. Rxg7 {[%clk 0:01:54]}  c3+ {[%clk 0:01:06]} 30. Ke2 {[%clk 0:01:55]}  Ra8 {[%clk 0:00:48]} 31. a5 {[%clk 0:01:51]}  Re8 {[%clk 0:00:48]} 32. a6 {[%clk 0:01:52]}  Nc4+ {[%clk 0:00:48]} 33. Kf3 {[%clk 0:01:51]}  d3 {[%clk 0:00:11]} 34. cxd3 {[%clk 0:01:42]}  Nd2+ {[%clk 0:00:11]} 35. Kxf4 {[%clk 0:01:39]}  Nb3 {[%clk 0:00:12]} 36. Rf1 {[%clk 0:01:26]}  c2 {[%clk 0:00:11]} 37. Rc7 {[%clk 0:01:27]}  c1=Q+ {[%clk 0:00:11]} 38. Rfxc1 {[%clk 0:01:27]}  Nxc1 {[%clk 0:00:12]} 39. Rxc1 {[%clk 0:01:28]}  Ra8 {[%clk 0:00:12]} 40. Ra1 {[%clk 0:01:29]}  Ke6 {[%clk 0:00:13]} 41. a7 {[%clk 0:01:29]}  h6 {[%clk 0:00:12]} 42. Ra6+ {[%clk 0:01:29]}  Ke7 {[%clk 0:00:11]} 43. Kf5 {[%clk 0:01:30]} 1-0

[Event "January 9 Early 2024"]
[Site "https://www.chess.com"]
[Date "2024.01.11"]
[Round "1"]
[White "Horak, Martin"]
[Black "Svane, Rasmus"]
[Result "0-1"]
[Board "106"]
[TimeControl "180+1"]
[WhiteFideId "367095"]
[BlackFideId "4657101"]
[WhiteElo "2520"]
[BlackElo "3015"]
[WhiteTeam "CZE"]
[BlackTeam "GER"]
[WhiteClock "0:00:35"]
[BlackClock "0:00:34"]

1. e4 {[%clk 0:03:00]}  c6 {[%clk 0:02:59]} 2. Nf3 {[%clk 0:03:00]}  d5 {[%clk 0:03:00]} 3. Nc3 {[%clk 0:03:00]}  dxe4 {[%clk 0:02:59]} 4. Nxe4 {[%clk 0:03:00]}  Nf6 {[%clk 0:03:00]} 5. Qe2 {[%clk 0:03:00]}  Nxe4 {[%clk 0:03:00]} 6. Qxe4 {[%clk 0:03:01]}  Qa5 {[%clk 0:03:00]} 7. Bc4 {[%clk 0:03:00]}  Bf5 {[%clk 0:02:59]} 8. Qf4 {[%clk 0:03:00]}  e6 {[%clk 0:02:56]} 9. O-O {[%clk 0:02:54]}  Be7 {[%clk 0:02:55]} 10. c3 {[%clk 0:02:50]}  O-O {[%clk 0:02:55]} 11. d4 {[%clk 0:02:49]}  Nd7 {[%clk 0:02:52]} 12. Re1 {[%clk 0:02:38]}  Rfe8 {[%clk 0:02:50]} 13. Ne5 {[%clk 0:02:35]}  Nxe5 {[%clk 0:02:38]} 14. Rxe5 {[%clk 0:02:33]}  Qd8 {[%clk 0:02:33]} 15. Bd2 {[%clk 0:02:12]}  Bd6 {[%clk 0:02:27]} 16. Rae1 {[%clk 0:02:07]}  Bxe5 {[%clk 0:02:26]} 17. Qxe5 {[%clk 0:02:04]}  Rc8 {[%clk 0:02:16]} 18. Qg3 {[%clk 0:01:56]}  Qf6 {[%clk 0:01:58]} 19. Bf4 {[%clk 0:01:31]}  Qg6 {[%clk 0:01:56]} 20. Qh4 {[%clk 0:01:29]}  Be4 {[%clk 0:01:43]} 21. Bg3 {[%clk 0:01:14]}  Bd5 {[%clk 0:01:32]} 22. Bf1 {[%clk 0:01:11]}  b5 {[%clk 0:01:18]} 23. h3 {[%clk 0:01:05]}  Bc4 {[%clk 0:01:13]} 24. Re5 {[%clk 0:01:01]}  Bxf1 {[%clk 0:01:11]} 25. Rg5 {[%clk 0:01:00]}  Qb1 {[%clk 0:00:43]} 26. Rxg7+ {[%clk 0:00:50]}  Kxg7 {[%clk 0:00:44]} 27. Be5+ {[%clk 0:00:50]}  Kg8 {[%clk 0:00:43]} 28. Qf6 {[%clk 0:00:49]}  Bxg2+ {[%clk 0:00:41]} 29. Kh2 {[%clk 0:00:35]}  Qh1+ {[%clk 0:00:38]} 30. Kg3 {[%clk 0:00:35]}  Qxh3+ {[%clk 0:00:39]} 31. Kf4 {[%clk 0:00:35]}  Qf3+ {[%clk 0:00:36]} 32. Kg5 {[%clk 0:00:35]}  Qxf6+ {[%clk 0:00:34]} 0-1

[Event "January 9 Early 2024"]
[Site "https://www.chess.com"]
[Date "2024.01.11"]
[Round "1"]
[White "Mihajlovskij, Sergei"]
[Black "Kiselev, Vitalii"]
[Result "0-1"]
[Board "111"]
[TimeControl "180+1"]
[WhiteFideId "13500805"]
[BlackFideId "4194128"]
[WhiteElo "2197"]
[BlackElo "2598"]
[WhiteTeam "BLR"]
[BlackTeam "FID"]
[WhiteClock "0:00:49"]
[BlackClock "0:00:42"]

1. e4 {[%clk 0:02:54]}  c5 {[%clk 0:02:59]} 2. Nf3 {[%clk 0:02:54]}  e6 {[%clk 0:02:58]} 3. g3 {[%clk 0:02:50]}  Nc6 {[%clk 0:02:54]} 4. d3 {[%clk 0:02:49]}  d5 {[%clk 0:02:53]} 5. Qe2 {[%clk 0:02:49]}  Nge7 {[%clk 0:02:49]} 6. Bg2 {[%clk 0:02:49]}  g6 {[%clk 0:02:48]} 7. O-O {[%clk 0:02:49]}  Bg7 {[%clk 0:02:48]} 8. Nbd2 {[%clk 0:02:43]}  O-O {[%clk 0:02:46]} 9. Rd1 {[%clk 0:02:42]}  b6 {[%clk 0:02:45]} 10. Nf1 {[%clk 0:02:41]}  Bb7 {[%clk 0:02:43]} 11. c3 {[%clk 0:02:39]}  Qc7 {[%clk 0:02:39]} 12. Bf4 {[%clk 0:02:33]}  e5 {[%clk 0:02:38]} 13. Bd2 {[%clk 0:02:20]}  Rad8 {[%clk 0:02:37]} 14. a4 {[%clk 0:02:17]}  Rfe8 {[%clk 0:02:30]} 15. Be1 {[%clk 0:02:16]}  h6 {[%clk 0:02:24]} 16. h4 {[%clk 0:02:15]}  Kh7 {[%clk 0:02:11]} 17. Ne3 {[%clk 0:02:09]}  d4 {[%clk 0:02:07]} 18. Nc4 {[%clk 0:02:08]}  Ba6 {[%clk 0:01:59]} 19. b3 {[%clk 0:02:05]}  dxc3 {[%clk 0:01:52]} 20. Bxc3 {[%clk 0:02:04]}  Bc8 {[%clk 0:01:46]} 21. Nh2 {[%clk 0:02:01]}  Nd4 {[%clk 0:01:44]} 22. Bxd4 {[%clk 0:02:00]}  Rxd4 {[%clk 0:01:40]} 23. Rac1 {[%clk 0:01:50]}  Nc6 {[%clk 0:01:37]} 24. Qe3 {[%clk 0:01:47]}  Rdd8 {[%clk 0:01:31]} 25. Ra1 {[%clk 0:01:40]}  h5 {[%clk 0:01:27]} 26. a5 {[%clk 0:01:31]}  b5 {[%clk 0:01:22]} 27. Na3 {[%clk 0:01:26]}  Nd4 {[%clk 0:01:21]} 28. Rdb1 {[%clk 0:01:15]}  Bh6 {[%clk 0:01:19]} 29. Qe1 {[%clk 0:01:13]}  a6 {[%clk 0:01:16]} 30. Ra2 {[%clk 0:01:11]}  Be6 {[%clk 0:01:11]} 31. Rab2 {[%clk 0:01:08]}  Rd6 {[%clk 0:01:02]} 32. Nc2 {[%clk 0:01:07]}  Nxc2 {[%clk 0:00:56]} 33. Rxc2 {[%clk 0:01:08]}  Rxd3 {[%clk 0:00:56]} 34. b4 {[%clk 0:01:08]}  c4 {[%clk 0:00:55]} 35. Bf1 {[%clk 0:01:04]}  Rd6 {[%clk 0:00:54]} 36. Nf3 {[%clk 0:01:04]}  f6 {[%clk 0:00:54]} 37. Be2 {[%clk 0:00:59]}  Red8 {[%clk 0:00:54]} 38. Rd1 {[%clk 0:01:00]}  Rxd1 {[%clk 0:00:53]} 39. Bxd1 {[%clk 0:01:00]}  Qd6 {[%clk 0:00:52]} 40. Be2 {[%clk 0:01:00]}  Bg4 {[%clk 0:00:48]} 41. Kg2 {[%clk 0:00:56]}  Kg7 {[%clk 0:00:44]} 42. Bxc4 {[%clk 0:00:48]}  bxc4 {[%clk 0:00:43]} 43. Rxc4 {[%clk 0:00:49]}  Bxf3+ {[%clk 0:00:42]} 0-1

[Event "January 9 Early 2024"]
[Site "https://www.chess.com"]
[Date "2024.01.11"]
[Round "1"]
[White "Guzman Lozano, Campo Elias"]
[Black "Bournel, Antoine"]
[Result "0-1"]
[Board "112"]
[TimeControl "180+1"]
[WhiteFideId "4403746"]
[BlackFideId "26093553"]
[WhiteElo "2163"]
[BlackElo "2567"]
[WhiteTeam "COL"]
[BlackTeam "FRA"]
[WhiteClock "0:00:30"]
[BlackClock "0:00:51"]

1. c4 {[%clk 0:02:59]}  g6 {[%clk 0:02:55]} 2. Nc3 {[%clk 0:02:58]}  Bg7 {[%clk 0:02:56]} 3. g3 {[%clk 0:02:56]}  e5 {[%clk 0:02:53]} 4. Bg2 {[%clk 0:02:55]}  d6 {[%clk 0:02:53]} 5. d3 {[%clk 0:02:55]}  f5 {[%clk 0:02:53]} 6. e3 {[%clk 0:02:51]}  Nh6 {[%clk 0:02:46]} 7. Nge2 {[%clk 0:02:50]}  c6 {[%clk 0:02:46]} 8. Rb1 {[%clk 0:02:44]}  a5 {[%clk 0:02:45]} 9. b3 {[%clk 0:02:42]}  O-O {[%clk 0:02:44]} 10. O-O {[%clk 0:02:41]}  Be6 {[%clk 0:02:43]} 11. a3 {[%clk 0:02:40]}  Na6 {[%clk 0:02:37]} 12. b4 {[%clk 0:02:36]}  axb4 {[%clk 0:02:36]} 13. axb4 {[%clk 0:02:35]}  Nc7 {[%clk 0:02:37]} 14. b5 {[%clk 0:02:33]}  d5 {[%clk 0:02:36]} 15. bxc6 {[%clk 0:02:30]}  bxc6 {[%clk 0:02:36]} 16. Qc2 {[%clk 0:02:15]}  Nf7 {[%clk 0:02:18]} 17. Bd2 {[%clk 0:02:10]}  Qe7 {[%clk 0:02:16]} 18. Rb7 {[%clk 0:02:08]}  Nd6 {[%clk 0:02:05]} 19. cxd5 {[%clk 0:02:06]}  Nxb7 {[%clk 0:02:02]} 20. dxe6 {[%clk 0:02:05]}  Qxe6 {[%clk 0:01:58]} 21. Rb1 {[%clk 0:01:54]}  Rab8 {[%clk 0:01:52]} 22. Rb6 {[%clk 0:01:51]}  Na5 {[%clk 0:01:42]} 23. Qa4 {[%clk 0:01:49]}  Rxb6 {[%clk 0:01:39]} 24. Qxa5 {[%clk 0:01:47]}  Rfb8 {[%clk 0:01:35]} 25. h4 {[%clk 0:01:34]}  Kh8 {[%clk 0:01:34]} 26. Kh2 {[%clk 0:01:31]}  Qd6 {[%clk 0:01:25]} 27. d4 {[%clk 0:01:26]}  Rb3 {[%clk 0:01:14]} 28. Qa4 {[%clk 0:01:02]}  Nd5 {[%clk 0:01:00]} 29. dxe5 {[%clk 0:00:52]}  Bxe5 {[%clk 0:00:57]} 30. Nxd5 {[%clk 0:00:44]}  cxd5 {[%clk 0:00:57]} 31. Qa5 {[%clk 0:00:34]}  Ra3 {[%clk 0:00:50]} 32. Qxd5 {[%clk 0:00:31]}  Qxd5 {[%clk 0:00:50]} 33. Bxd5 {[%clk 0:00:30]}  Rd3 {[%clk 0:00:51]} 0-1

[Event "January 9 Early 2024"]
[Site "https://www.chess.com"]
[Date "2024.01.11"]
[Round "1"]
[White "Navara, David"]
[Black "Radibratovic, Predrag"]
[Result "1-0"]
[Board "113"]
[TimeControl "180+1"]
[WhiteFideId "309095"]
[BlackFideId "902012"]
[WhiteElo "2990"]
[BlackElo "2512"]
[WhiteTeam "CZE"]
[BlackTeam "SRB"]
[WhiteClock "0:00:08"]
[BlackClock "0:01:35"]

1. e4 {[%clk 0:03:00]}  c6 {[%clk 0:02:59]} 2. d4 {[%clk 0:02:59]}  d5 {[%clk 0:03:00]} 3. e5 {[%clk 0:03:00]}  g6 {[%clk 0:03:00]} 4. h4 {[%clk 0:02:52]}  h5 {[%clk 0:02:59]} 5. c4 {[%clk 0:02:46]}  Be6 {[%clk 0:02:58]} 6. Nh3 {[%clk 0:02:38]}  dxc4 {[%clk 0:02:58]} 7. Nf4 {[%clk 0:02:31]}  Bd5 {[%clk 0:02:57]} 8. e6 {[%clk 0:02:32]}  Bxe6 {[%clk 0:02:56]} 9. Nxe6 {[%clk 0:02:32]}  fxe6 {[%clk 0:02:56]} 10. Bxc4 {[%clk 0:02:25]}  Bg7 {[%clk 0:02:55]} 11. Bxe6 {[%clk 0:01:55]}  Qxd4 {[%clk 0:02:52]} 12. Qb3 {[%clk 0:01:55]}  Nd7 {[%clk 0:02:28]} 13. Bxg8 {[%clk 0:01:41]}  O-O-O {[%clk 0:02:28]} 14. Be6 {[%clk 0:01:41]}  Kc7 {[%clk 0:02:25]} 15. Bxd7 {[%clk 0:01:26]}  Rxd7 {[%clk 0:02:25]} 16. O-O {[%clk 0:01:09]}  Qxh4 {[%clk 0:02:23]} 17. Qg3+ {[%clk 0:01:02]}  Qxg3 {[%clk 0:02:23]} 18. fxg3 {[%clk 0:01:03]}  Bd4+ {[%clk 0:02:20]} 19. Kh2 {[%clk 0:01:00]}  e5 {[%clk 0:02:19]} 20. Nc3 {[%clk 0:00:46]}  h4 {[%clk 0:02:15]} 21. g4 {[%clk 0:00:46]}  h3 {[%clk 0:02:10]} 22. Bg5 {[%clk 0:00:23]}  hxg2+ {[%clk 0:02:09]} 23. Kxg2 {[%clk 0:00:24]}  Bxc3 {[%clk 0:02:01]} 24. bxc3 {[%clk 0:00:25]}  Rd3 {[%clk 0:02:01]} 25. Bf6 {[%clk 0:00:14]}  Re8 {[%clk 0:01:48]} 26. Rae1 {[%clk 0:00:13]}  e4 {[%clk 0:01:49]} 27. Bd4 {[%clk 0:00:12]}  Re7 {[%clk 0:01:43]} 28. Rf4 {[%clk 0:00:12]}  e3 {[%clk 0:01:43]} 29. Kf3 {[%clk 0:00:08]}  e2+ {[%clk 0:01:38]} 30. Kf2 {[%clk 0:00:09]}  Rd2 {[%clk 0:01:37]} 31. a4 {[%clk 0:00:07]}  b6 {[%clk 0:01:37]} 32. Be3 {[%clk 0:00:06]}  Rc2 {[%clk 0:01:37]} 33. c4 {[%clk 0:00:05]}  g5 {[%clk 0:01:32]} 34. Rd4 {[%clk 0:00:03]}  c5 {[%clk 0:01:32]} 35. Rd5 {[%clk 0:00:03]}  Rxc4 {[%clk 0:01:32]} 36. Rxg5 {[%clk 0:00:03]}  Rxa4 {[%clk 0:01:32]} 37. Rxe2 {[%clk 0:00:03]}  Rae4 {[%clk 0:01:32]} 38. Kf3 {[%clk 0:00:03]}  c4 {[%clk 0:01:32]} 39. Bf4+ {[%clk 0:00:03]}  Kb7 {[%clk 0:01:32]} 40. Rxe4 {[%clk 0:00:03]}  Rxe4 {[%clk 0:01:32]} 41. Kxe4 {[%clk 0:00:04]}  c3 {[%clk 0:01:32]} 42. Rg7+ {[%clk 0:00:04]}  Kc6 {[%clk 0:01:32]} 43. Rc7+ {[%clk 0:00:05]}  Kb5 {[%clk 0:01:31]} 44. Rxc3 {[%clk 0:00:06]}  a5 {[%clk 0:01:32]} 45. Rc1 {[%clk 0:00:07]}  Kb4 {[%clk 0:01:32]} 46. g5 {[%clk 0:00:07]}  a4 {[%clk 0:01:32]} 47. g6 {[%clk 0:00:08]}  a3 {[%clk 0:01:33]} 48. g7 {[%clk 0:00:09]}  Kb3 {[%clk 0:01:34]} 49. g8=Q+ {[%clk 0:00:09]}  Kb2 {[%clk 0:01:35]} 50. Qc4 {[%clk 0:00:08]} 1-0